fUST/lending_fUST_20250523
["ID","MTS","AMOUNT","RATE_DAILY","PERIOD"]
[362073872,1747975838294,-200.735121,0.00017263,2]
[362073873,1747975838304,-200.735121,0.00017263,2]
[362073874,1747975838316,-287.251406,0.00017263,2]
[362073875,1747975838325,-430.0,0.00017263,2]
[362073876,1747975838334,-287.251406,0.00017263,2]
[362073877,1747975838344,-430.0,0.00017263,2]
[362073878,1747975838353,-151.0,0.00017272,2]
[362073879,1747975838363,-151.0,0.00017272,2]
[362073880,1747975838372,-431.94760888,0.00017273,2]
[362073881,1747975838381,-158.622771,0.00017273,2]
[362073882,1747975838390,-151.0,0.00017273,2]
[362073883,1747975838400,-151.0,0.00017273,2]
[362073884,1747975838409,-151.437121,0.00017273,2]
[362073885,1747975838419,-430.0,0.00017273,2]
[362073886,1747975838428,-151.0,0.00017273,2]
[362073887,1747975838438,-430.0,0.00017273,2]
[362073888,1747975838448,-430.0,0.00017273,2]
[362073889,1747975838458,-430.0,0.00017273,2]
[362073890,1747975838470,-430.0,0.00017273,2]
[362073891,1747975838480,-151.0,0.00017273,2]
[362073892,1747975838490,-188.562393,0.00017273,2]
[362073893,1747975838500,-430.0,0.00017273,2]
[362073894,1747975838509,-291.111573,0.00017273,2]
[362073895,1747975838519,-188.562393,0.00017273,2]
[362073896,1747975838529,-151.0,0.00017273,2]
[362073897,1747975838539,-430.0,0.00017273,2]
[362073898,1747975838548,-430.0,0.00017273,2]
[362073899,1747975838557,-430.0,0.00017273,2]
[362073900,1747975838580,-430.0,0.00017273,2]
[362073901,1747975838591,-352.10997344,0.00017273,2]
[362073902,1747975838601,-430.0,0.00017273,2]
[362073903,1747975838612,-430.0,0.00017273,2]
[362073904,1747975838623,-430.0,0.00017273,2]
[362073905,1747975838633,-151.442164,0.00017273,2]
[362073906,1747975838643,-430.0,0.00017273,2]
[362073907,1747975838652,-151.0,0.00017273,2]
[362073908,1747975838663,-151.0,0.00017273,2]
[362073909,1747975838673,-444.91628823,0.00017273,2]
[362073910,1747975838683,-430.0,0.00017273,2]
[362073911,1747975838693,-428.02412938,0.00017273,2]
[362073912,1747975838704,-228.294513,0.00017273,2]
[362073913,1747975838714,-500.0,0.00017273,2]
[362073914,1747975838724,-228.294513,0.00017273,2]
[362073915,1747975838733,-430.0,0.00017273,2]
[362073916,1747975838744,-152.852596,0.00017273,2]
[362073917,1747975838756,-442.02609151,0.00017273,2]
[362073918,1747975838766,-151.0,0.00017273,2]
[362073919,1747975838776,-151.0,0.00017273,2]
[362073920,1747975838785,-430.0,0.00017273,2]
[362073921,1747975838797,-446.73811007,0.00017273,2]
[362073922,1747975838807,-430.0,0.00017273,2]
[362073923,1747975838822,-430.0,0.00017273,2]
[362073924,1747975838832,-1226.370843,0.00017273,2]
[362073925,1747975838841,-440.37630989,0.00017273,2]
[362073926,1747975838851,-174.324949,0.00017273,2]
[362073927,1747975838861,-1226.370843,0.00017273,2]
[362073928,1747975838871,-430.0,0.00017273,2]
[362073929,1747975838880,-151.0,0.00017273,2]
[362073930,1747975838890,-4333.335755,0.00017273,2]
[362073931,1747975838899,-4333.335755,0.00017273,2]
[362073932,1747975838909,-567.53103203,0.00017273,2]
[362073933,1747975838918,-151.0,0.00017273,2]
[362073934,1747975838928,-151.0,0.00017273,2]
[362073935,1747975838937,-645.861742,0.00017273,2]
[362073936,1747975838947,-645.861742,0.00017273,2]
[362073937,1747975838956,-151.485029,0.00017273,2]
[362073938,1747975838966,-151.0,0.00017273,2]
[362073939,1747975838976,-298.905147,0.00017273,2]
[362073940,1747975838985,-200.735121,0.00017273,2]
[362073941,1747975838995,-200.735121,0.00017273,2]
[362073942,1747975839004,-287.251406,0.00017273,2]
[362073943,1747975839014,-287.251406,0.00017273,2]
[362073944,1747975839024,-420.0,0.00017288,2]
[362073945,1747975839033,-420.0,0.00017288,2]
[362073946,1747975839043,-420.0,0.00017288,2]
[362073947,1747975839053,-1376.1704289,0.00017367,2]
[362073948,1747975839066,-1680.0,0.00017375,2]
[362073949,1747975839075,-430.0,0.00017445,2]
[362073950,1747975839084,-1092.0,0.00017445,2]
[362073951,1747975839094,-430.0,0.00017445,2]
[362073952,1747975839103,-430.0,0.00017445,2]
[362073953,1747975839112,-2139.84,0.00017445,2]
[362073954,1747975839123,-430.0,0.00017445,2]
[362073955,1747975839132,-430.0,0.00017445,2]
[362073956,1747975839142,-430.0,0.00017445,2]
[362073957,1747975839151,-493.14,0.00017445,2]
[362073958,1747975839163,-430.0,0.00017447,2]
[362073959,1747975839172,-430.0,0.00017447,2]
[362073960,1747975839181,-467.68653886,0.00017447,2]
[362073961,1747975839191,-340.10425134,0.00017447,2]
[362073962,1747975839200,-430.0,0.00017447,2]
[362073963,1747975839209,-430.0,0.00017447,2]
[362073964,1747975839220,-501.74907307,0.00017521,2]
[362073965,1747975839231,-1000.0,0.00017521,2]
[362073966,1747975839240,-503.68506702,0.00017521,2]
[362073967,1747975839250,-1000.0,0.00017521,2]
[362073968,1747975839259,-1000.0,0.00017521,2]
[362073969,1747975839268,-683.57766415,0.00017521,2]
[362073970,1747975839278,-187.56307817,0.00017521,2]
[362073971,1747975839428,-812.43692183,0.00017521,2]
[362073972,1747975839438,-1000.0,0.00017521,2]
[362073973,1747975839447,-504.56033435,0.00017521,2]
[362073974,1747975839457,-1000.0,0.00017521,2]
[362073975,1747975839467,-1000.58836557,0.00017521,2]
[362073976,1747975839476,-430.0,0.00017534,2]
[362073977,1747975839486,-430.0,0.00017534,2]
[362073978,1747975839495,-479.79,0.00017534,2]
[362073979,1747975839505,-925.59,0.00017534,2]
[362073980,1747975839514,-430.0,0.00017534,2]
[362073981,1747975839524,-430.0,0.00017534,2]
[362073982,1747975839534,-430.0,0.00017534,2]
[362073983,1747975839544,-546.37246411,0.00017534,2]
[362073984,1747975839556,-77.90753589,0.00017534,2]
[362073985,1747975839568,-1415.32,0.00017534,2]
[362073986,1747975839578,-458.92350009,0.00017536,2]
[362073987,1747975839587,-430.0,0.00017536,2]
[362073988,1747975839597,-430.0,0.00017536,2]
[362073989,1747975839606,-430.0,0.00017536,2]
[362073990,1747975839616,-430.0,0.00017536,2]
[362073991,1747975839626,-430.0,0.00017536,2]
[362073992,1747975839635,-430.0,0.00017536,2]
[362073993,1747975839644,-430.0,0.00017536,2]
[362073994,1747975839654,-430.0,0.00017536,2]
[362073995,1747975839663,-430.0,0.00017536,2]
[362073996,1747975839672,-430.0,0.00017536,2]
[362073997,1747975839682,-430.0,0.00017536,2]
[362073998,1747975839691,-430.0,0.00017536,2]
[362073999,1747975839701,-430.0,0.00017536,2]
[362074000,1747975839710,-430.0,0.00017536,2]
[362074001,1747975839720,-430.0,0.00017536,2]
[362074002,1747975839729,-612.32644779,0.00017536,2]
[362074005,1747975839763,-1044.60355221,0.00017536,2]
[362074006,1747975839772,-430.0,0.00017536,2]
[362074007,1747975839782,-430.0,0.00017536,2]
[362074008,1747975839792,-430.0,0.00017536,2]
[362074009,1747975839801,-430.0,0.00017536,2]
[362074010,1747975839813,-465.7066474,0.00017536,2]
[362074011,1747975839827,-430.0,0.00017536,2]
[362074012,1747975839836,-430.0,0.00017536,2]
[362074013,1747975839846,-430.0,0.00017536,2]
[362074014,1747975839856,-430.0,0.00017537,2]
[362074015,1747975839865,-430.0,0.00017537,2]
[362074016,1747975839875,-430.0,0.00017537,2]
[362074017,1747975839885,-430.0,0.00017537,2]
[362074018,1747975839895,-430.0,0.00017537,2]
[362074019,1747975839905,-430.0,0.00017537,2]
[362074020,1747975839915,-430.0,0.00017537,2]
[362074021,1747975839924,-430.0,0.00017537,2]
[362074022,1747975839934,-430.0,0.00017537,2]
[362074023,1747975839944,-430.0,0.00017537,2]
[362074024,1747975839954,-430.0,0.00017537,2]
[362074025,1747975839963,-430.0,0.00017537,2]
[362074026,1747975839973,-675.85,0.00017537,2]
[362074027,1747975839983,-430.0,0.00017537,2]
[362074028,1747975839992,-430.0,0.00017537,2]
[362074029,1747975840002,-451.64872367,0.00017537,2]
[362074030,1747975840012,-430.0,0.00017537,2]
[362074031,1747975840021,-478.41,0.00017537,2]
[362074032,1747975840032,-430.0,0.00017537,2]
[362074034,1747975840042,-1032.14,0.00017537,2]
[362074035,1747975840051,-430.0,0.00017537,2]
[362074036,1747975840064,-430.0,0.00017537,2]
[362074037,1747975840074,-430.0,0.00017537,2]
[362074038,1747975840083,-430.0,0.00017537,2]
[362074040,1747975840093,-430.0,0.00017537,2]
[362074041,1747975840103,-430.0,0.00017537,2]
[362074043,1747975840113,-616.62,0.00017537,2]
[362074045,1747975840123,-430.0,0.00017537,2]
[362074046,1747975840132,-430.0,0.00017537,2]
[362074047,1747975840143,-430.0,0.00017537,2]
[362074048,1747975840153,-430.0,0.00017537,2]
[362074049,1747975840165,-648.92,0.00017537,2]
[362074050,1747975840174,-528.37,0.00017537,2]
[362074051,1747975840184,-430.0,0.00017537,2]
[362074052,1747975840193,-430.0,0.00017537,2]
[362074053,1747975840203,-430.0,0.00017537,2]
[362074054,1747975840212,-430.0,0.00017537,2]
[362074055,1747975840222,-752.58,0.00017537,2]
[362074056,1747975840232,-1013.01,0.00017537,2]
[362074057,1747975840242,-430.0,0.00017537,2]
[362074058,1747975840252,-249.29047519,0.00017537,2]
[362074059,1747975840262,-430.0,0.00017537,2]
[362074060,1747975840271,-430.0,0.00017537,2]
[362074061,1747975840281,-507.04,0.00017537,2]
[362074062,1747975840290,-430.0,0.00017537,2]
[362074063,1747975840300,-287.251406,0.00017537,2]
[362074064,1747975840311,-201.41424786,0.00017537,2]
[362074065,1747975841833,-786.4463028,0.00015268,2]
[362074066,1747975841847,-1049.27477941,0.00015268,2]
[362074067,1747975841863,-3164.27891779,0.00015268,2]
[362074068,1747975841873,-617.73208756,0.00015424,2]
[362074069,1747975841883,-440.63725763,0.00016438,2]
[362074070,1747975841893,-430.0,0.00016438,2]
[362074071,1747975841903,-500.0,0.00016887,2]
[362074072,1747975841913,-500.0,0.00016887,2]
[362074073,1747975841923,-500.0,0.00016887,2]
[362074074,1747975841934,-500.0,0.00016887,2]
[362074075,1747975841943,-322.55601665,0.00016887,2]
[362074076,1747975841953,-500.0,0.00016887,2]
[362074077,1747975841963,-500.0,0.00016887,2]
[362074078,1747975841973,-500.0,0.00016887,2]
[362074079,1747975841984,-500.0,0.00016887,2]
[362074080,1747975841994,-641.56864906,0.00016887,2]
[362074081,1747975842004,-500.0,0.00016887,2]
[362074082,1747975842013,-500.0,0.00016887,2]
[362074083,1747975842024,-500.0,0.00016887,2]
[362074084,1747975842033,-500.0,0.00016887,2]
[362074085,1747975842043,-894.64583333,0.00016989,3]
[362074086,1747975842053,-228.58575214,0.00017537,2]
[362074087,1747975842066,-287.251406,0.00017537,2]
[362074088,1747975842076,-430.0,0.00017537,2]
[362074089,1747975842086,-151.0,0.00017546,2]
[362074090,1747975842096,-151.0,0.00017546,2]
[362074091,1747975842105,-151.0,0.00017546,2]
[362074092,1747975842115,-151.0,0.00017546,2]
[362074093,1747975842125,-645.861742,0.00017546,2]
[362074094,1747975842135,-645.861742,0.00017546,2]
[362074095,1747975842144,-200.735121,0.00017546,2]
[362074096,1747975842154,-200.735121,0.00017546,2]
[362074097,1747975842163,-2615.5,0.00017547,2]
[362074098,1747975842173,-2615.5,0.00017547,2]
[362074099,1747975842183,-2615.5,0.00017547,2]
[362074100,1747975842193,-2615.5,0.00017547,2]
[362074101,1747975842202,-2814.1,0.00017547,2]
[362074102,1747975842212,-2814.1,0.00017547,2]
[362074103,1747975842222,-2814.1,0.00017547,2]
[362074104,1747975842231,-2814.1,0.00017547,2]
[362074105,1747975842240,-2814.1,0.00017547,2]
[362074106,1747975842250,-2814.1,0.00017547,2]
[362074107,1747975842259,-2814.1,0.00017547,2]
[362074108,1747975842270,-2814.1,0.00017547,2]
[362074109,1747975842279,-2814.1,0.00017547,2]
[362074110,1747975842289,-2814.1,0.00017547,2]
[362074111,1747975842298,-430.0,0.00017547,2]
[362074112,1747975842307,-151.0,0.00017547,2]
[362074113,1747975842320,-151.0,0.00017547,2]
[362074114,1747975842329,-2614.9,0.00017547,2]
[362074115,1747975842338,-2614.9,0.00017547,2]
[362074116,1747975842353,-2614.9,0.00017547,2]
[362074117,1747975842363,-2614.9,0.00017547,2]
[362074118,1747975842372,-151.0,0.00017547,2]
[362074119,1747975842382,-151.866833,0.00017547,2]
[362074120,1747975842391,-430.0,0.00017547,2]
[362074121,1747975842401,-435.66959753,0.00017547,2]
[362074122,1747975842411,-563.72596253,0.00017547,2]
[362074123,1747975842420,-456.80536342,0.00017547,2]
[362074124,1747975842429,-188.562393,0.00017547,2]
[362074125,1747975842439,-430.0,0.00017547,2]
[362074126,1747975842449,-151.0,0.00017547,2]
[362074127,1747975842459,-188.562393,0.00017547,2]
[362074128,1747975842469,-430.0,0.00017547,2]
[362074129,1747975842479,-438.71776947,0.00017547,2]
[362074130,1747975842489,-430.0,0.00017547,2]
[362074131,1747975842498,-430.0,0.00017547,2]
[362074132,1747975842508,-430.0,0.00017547,2]
[362074133,1747975842518,-430.0,0.00017547,2]
[362074134,1747975842528,-304.90451865,0.00017547,2]
[362074135,1747975842538,-430.0,0.00017547,2]
[362074136,1747975842547,-151.0,0.00017547,2]
[362074137,1747975842557,-152.522554,0.00017547,2]
[362074138,1747975842570,-225.796422,0.00017547,2]
[362074139,1747975842580,-430.0,0.00017547,2]
[362074140,1747975842590,-500.0,0.00017547,2]
[362074141,1747975842599,-430.0,0.00017547,2]
[362074142,1747975842610,-295.002582,0.00017547,2]
[362074143,1747975842619,-151.0,0.00017547,2]
[362074144,1747975842629,-430.0,0.00017547,2]
[362074145,1747975842639,-439.64719023,0.00017547,2]
[362074146,1747975842649,-430.0,0.00017547,2]
[362074148,1747975842659,-1226.370843,0.00017547,2]
[362074149,1747975842669,-1226.370843,0.00017547,2]
[362074150,1747975842679,-1226.370843,0.00017547,2]
[362074151,1747975842689,-1226.370843,0.00017547,2]
[362074155,1747975842699,-430.0,0.00017547,2]
[362074156,1747975842880,-151.0,0.00017547,2]
[362074157,1747975842890,-180.464442,0.00017547,2]
[362074158,1747975842899,-151.0,0.00017547,2]
[362074159,1747975842909,-151.0,0.00017547,2]
[362074160,1747975842920,-645.861742,0.00017547,2]
[362074161,1747975842930,-645.861742,0.00017547,2]
[362074162,1747975842939,-151.0,0.00017547,2]
[362074163,1747975842949,-151.0,0.00017547,2]
[362074164,1747975842959,-200.735121,0.00017547,2]
[362074165,1747975842968,-200.735121,0.00017547,2]
[362074167,1747975842977,-287.251406,0.00017547,2]
[362074168,1747975842987,-287.251406,0.00017547,2]
[362074170,1747975842996,-287.251406,0.00017547,2]
[362074172,1747975843007,-287.251406,0.00017547,2]
[362074174,1747975843016,-151.0,0.0001765,2]
[362074176,1747975843026,-645.861742,0.0001765,2]
[362074177,1747975843035,-645.861742,0.0001765,2]
[362074179,1747975843045,-430.0,0.00017719,2]
[362074181,1747975843055,-1092.0,0.00017719,2]
[362074183,1747975843066,-430.0,0.00017719,2]
[362074184,1747975843075,-430.0,0.00017719,2]
[362074186,1747975843086,-2139.84,0.00017719,2]
[362074188,1747975843096,-430.0,0.00017719,2]
[362074190,1747975843106,-430.0,0.00017719,2]
[362074192,1747975843120,-430.0,0.00017719,2]
[362074194,1747975843129,-493.14,0.00017719,2]
[362074196,1747975843140,-445.63059755,0.00017721,2]
[362074198,1747975843150,-228.19909823,0.00017721,2]
[362074200,1747975843160,-430.0,0.00017721,2]
[362074201,1747975843169,-2614.9,0.00017788,3]
[362074203,1747975843179,-2614.9,0.00017788,3]
[362074205,1747975843188,-2614.9,0.00017788,3]
[362074207,1747975843198,-2614.9,0.00017788,3]
[362074208,1747975843207,-2614.9,0.00017788,3]
[362074210,1747975843217,-2614.9,0.00017788,3]
[362074212,1747975843226,-2614.9,0.00017788,3]
[362074214,1747975843236,-2614.9,0.00017788,3]
[362074216,1747975843245,-2614.9,0.00017788,3]
[362074218,1747975843255,-151.0,0.00017788,2]
[362074220,1747975843264,-275.831647,0.00017788,2]
[362074223,1747975843274,-151.0,0.00017788,2]
[362074225,1747975843283,-152.177729,0.00017788,2]
[362074227,1747975843293,-188.562393,0.00017788,2]
[362074229,1747975843302,-151.0,0.00017788,2]
[362074231,1747975843315,-188.562393,0.00017788,2]
[362074232,1747975843324,-182.356504,0.00017788,2]
[362074234,1747975843332,-228.294513,0.00017788,2]
[362074236,1747975843342,-228.294513,0.00017788,2]
[362074238,1747975843351,-1226.370843,0.00017788,2]
[362074240,1747975843361,-1226.370843,0.00017788,2]
[362074241,1747975843371,-4333.335755,0.00017788,2]
[362074243,1747975843380,-4333.335755,0.00017788,2]
[362074245,1747975843390,-151.0,0.00017788,2]
[362074247,1747975843400,-151.0,0.00017788,2]
[362074249,1747975843409,-200.735121,0.00017788,2]
[362074251,1747975843418,-200.735121,0.00017788,2]
[362074253,1747975843427,-287.251406,0.00017788,2]
[362074254,1747975843437,-287.251411,0.00017788,2]
[362074256,1747975843447,-188.562393,0.00017795,2]
[362074258,1747975843457,-151.0,0.00017795,2]
[362074260,1747975843466,-188.562393,0.00017795,2]
[362074262,1747975843476,-248.974893,0.00017796,2]
[362074264,1747975843487,-228.294513,0.00017796,2]
[362074266,1747975843497,-228.294513,0.00017796,2]
[362074267,1747975843508,-4333.335755,0.00017796,2]
[362074269,1747975843518,-4333.335755,0.00017796,2]
[362074271,1747975843527,-645.861742,0.00017796,2]
[362074273,1747975843537,-645.861742,0.00017796,2]
[362074275,1747975843547,-200.735121,0.00017796,2]
[362074277,1747975843557,-200.735123,0.00017796,2]
[362074279,1747975843568,-151.504718,0.00017798,2]
[362074280,1747975843577,-435.92528058,0.00017808,2]
[362074282,1747975843587,-430.0,0.00017808,2]
[362074284,1747975843596,-479.79,0.00017808,2]
[362074286,1747975843606,-925.59,0.00017808,2]
[362074288,1747975843616,-430.0,0.00017808,2]
[362074289,1747975843626,-430.0,0.00017808,2]
[362074291,1747975843636,-430.0,0.00017808,2]
[362074293,1747975843645,-624.28,0.00017808,2]
[362074295,1747975843655,-1415.32,0.00017808,2]
[362074297,1747975843664,-430.0,0.0001781,2]
[362074299,1747975843673,-430.0,0.0001781,2]
[362074301,1747975843683,-430.0,0.0001781,2]
[362074303,1747975843693,-430.0,0.0001781,2]
[362074304,1747975843703,-445.29519821,0.0001781,2]
[362074306,1747975843712,-430.0,0.0001781,2]
[362074308,1747975843722,-430.0,0.0001781,2]
[362074310,1747975843732,-441.86679347,0.0001781,2]
[362074312,1747975843742,-430.0,0.0001781,2]
[362074314,1747975843756,-430.0,0.0001781,2]
[362074315,1747975843766,-430.0,0.0001781,2]
[362074317,1747975843776,-430.0,0.0001781,2]
[362074319,1747975843786,-430.0,0.0001781,2]
[362074321,1747975843796,-430.0,0.0001781,2]
[362074323,1747975843806,-430.0,0.0001781,2]
[362074325,1747975843817,-1656.93,0.0001781,2]
[362074327,1747975843827,-430.0,0.0001781,2]
[362074329,1747975843837,-430.0,0.0001781,2]
[362074331,1747975843847,-430.0,0.0001781,2]
[362074333,1747975843856,-430.0,0.0001781,2]
[362074335,1747975843866,-430.0,0.0001781,2]
[362074336,1747975843875,-430.0,0.0001781,2]
[362074338,1747975843885,-430.0,0.0001781,2]
[362074340,1747975843895,-430.0,0.00017811,2]
[362074342,1747975843905,-431.39581709,0.00017811,2]
[362074344,1747975843914,-430.0,0.00017811,2]
[362074346,1747975843924,-430.0,0.00017811,2]
[362074348,1747975843933,-430.0,0.00017811,2]
[362074350,1747975843942,-430.0,0.00017811,2]
[362074352,1747975843952,-430.0,0.00017811,2]
[362074353,1747975843961,-430.0,0.00017811,2]
[362074355,1747975843971,-430.0,0.00017811,2]
[362074357,1747975843980,-442.66290942,0.00017811,2]
[362074359,1747975843990,-430.0,0.00017811,2]
[362074361,1747975844000,-430.0,0.00017811,2]
[362074363,1747975844009,-675.85,0.00017811,2]
[362074365,1747975844019,-430.0,0.00017811,2]
[362074367,1747975844028,-430.0,0.00017811,2]
[362074369,1747975844038,-478.41,0.00017811,2]
[362074370,1747975844048,-430.0,0.00017811,2]
[362074372,1747975844057,-1032.14,0.00017811,2]
[362074374,1747975844070,-430.0,0.00017811,2]
[362074376,1747975844080,-430.0,0.00017811,2]
[362074378,1747975844090,-430.0,0.00017811,2]
[362074380,1747975844100,-430.0,0.00017811,2]
[362074382,1747975844111,-430.0,0.00017811,2]
[362074384,1747975844122,-430.0,0.00017811,2]
[362074385,1747975844132,-616.62,0.00017811,2]
[362074387,1747975844142,-430.0,0.00017811,2]
[362074389,1747975844153,-430.0,0.00017811,2]
[362074391,1747975844163,-430.0,0.00017811,2]
[362074393,1747975844173,-430.0,0.00017811,2]
[362074395,1747975844183,-648.92,0.00017811,2]
[362074397,1747975844193,-528.37,0.00017811,2]
[362074399,1747975844203,-430.0,0.00017811,2]
[362074401,1747975844212,-430.0,0.00017811,2]
[362074403,1747975844222,-409.82,0.00017811,2]
[362074405,1747975844232,-430.0,0.00017811,2]
[362074407,1747975844241,-752.58,0.00017811,2]
[362074408,1747975844251,-1013.01,0.00017811,2]
[362074410,1747975844261,-430.0,0.00017811,2]
[362074412,1747975844271,-430.0,0.00017811,2]
[362074414,1747975844280,-430.0,0.00017811,2]
[362074416,1747975844290,-151.0,0.00017811,2]
[362074418,1747975844301,-507.04,0.00017811,2]
[362074420,1747975844310,-430.0,0.00017811,2]
[362074422,1747975844321,-430.0,0.00017811,2]
[362074423,1747975844330,-430.0,0.00017811,2]
[362074425,1747975844340,-1226.370843,0.0001782,2]
[362074427,1747975844350,-1226.370843,0.0001782,2]
[362074429,1747975844359,-2649.35480524,0.0001782,2]
[362074431,1747975844369,-1664.11314,0.00017821,2]
[362074433,1747975844379,-1664.11314,0.00017821,2]
[362074435,1747975844388,-430.0,0.00017821,2]
[362074437,1747975844398,-435.16365248,0.00017821,2]
[362074439,1747975844408,-430.0,0.00017821,2]
[362074441,1747975844418,-188.562393,0.00017821,2]
[362074443,1747975844427,-151.0,0.00017821,2]
[362074444,1747975844437,-188.562393,0.00017821,2]
[362074446,1747975844447,-430.0,0.00017821,2]
[362074448,1747975844458,-430.0,0.00017821,2]
[362074450,1747975844468,-430.0,0.00017821,2]
[362074452,1747975844478,-430.0,0.00017821,2]
[362074454,1747975844488,-430.0,0.00017821,2]
[362074456,1747975844497,-432.11468585,0.00017821,2]
[362074458,1747975844508,-500.0,0.00017821,2]
[362074460,1747975844518,-430.0,0.00017821,2]
[362074462,1747975844529,-455.26542395,0.00017821,2]
[362074464,1747975844538,-430.0,0.00017821,2]
[362074466,1747975844548,-430.0,0.00017821,2]
[362074467,1747975844558,-151.0,0.00017821,2]
[362074469,1747975844571,-645.861742,0.00017821,2]
[362074471,1747975844581,-645.861742,0.00017821,2]
[362074473,1747975844591,-151.0,0.00017821,2]
[362074475,1747975844601,-1376.1704289,0.00017845,2]
[362074477,1747975844611,-500.0,0.0001796,2]
[362074479,1747975844621,-500.0,0.0001796,2]
[362074481,1747975844630,-501.08594553,0.0001796,2]
[362074483,1747975844639,-500.0,0.0001796,2]
[362074485,1747975844649,-430.0,0.00017993,2]
[362074487,1747975844659,-1092.0,0.00017993,2]
[362074489,1747975844669,-430.0,0.00017993,2]
[362074491,1747975844678,-430.0,0.00017993,2]
[362074493,1747975844690,-2139.84,0.00017993,2]
[362074495,1747975844700,-430.0,0.00017993,2]
[362074497,1747975844710,-430.0,0.00017993,2]
[362074499,1747975844722,-430.0,0.00017993,2]
[362074500,1747975844733,-493.14,0.00017993,2]
[362074502,1747975844743,-430.0,0.00017995,2]
[362074504,1747975844755,-38122.01833852,0.00018,2]
[362074506,1747975844765,-151.0,0.00018,2]
[362074508,1747975844774,-151.0,0.00018,2]
[362074510,1747975844784,-151.0,0.00018,2]
[362074512,1747975844794,-436.083835,0.00018,2]
[362074514,1747975844804,-436.083835,0.00018,2]
[362074516,1747975844814,-151.0,0.00018,2]
[362074517,1747975844824,-151.0,0.00018,2]
[362074518,1747975844835,-1664.11314,0.00018,2]
[362074520,1747975844845,-1664.11314,0.00018,2]
[362074522,1747975844856,-151.0,0.00018,2]
[362074524,1747975844865,-151.0,0.00018,2]
[362074526,1747975844875,-188.562393,0.00018,2]
[362074528,1747975844886,-188.562393,0.00018,2]
[362074530,1747975844896,-228.294513,0.00018,2]
[362074532,1747975844905,-228.294513,0.00018,2]
[362074534,1747975844915,-1226.370843,0.00018,2]
[362074536,1747975844925,-1226.370843,0.00018,2]
[362074548,1747975845029,-4333.335755,0.00018,2]
[362074550,1747975845050,-4333.335755,0.00018,2]
[362074552,1747975845060,-151.0,0.00018,2]
[362074554,1747975845071,-645.861742,0.00018,2]
[362074556,1747975845080,-645.861742,0.00018,2]
[362074557,1747975845090,-500.0,0.00018025,2]
[362074559,1747975845099,-216.02164005,0.00018025,2]
[362074561,1747975845110,-180.348333,0.00018043,2]
[362074563,1747975845119,-500.0,0.00018061,2]
[362074564,1747975845128,-500.0,0.00018068,2]
[362074565,1747975845139,-503.44201083,0.00018068,2]
[362074566,1747975845149,-1500.0,0.00018068,2]
[362074567,1747975845158,-503.55857605,0.00018068,2]
[362074568,1747975845168,-1016.1339976,0.00018068,2]
[362074569,1747975845177,-1000.0,0.00018068,2]
[362074570,1747975845187,-430.0,0.00018082,2]
[362074571,1747975845199,-479.79,0.00018082,2]
[362074572,1747975845208,-925.59,0.00018082,2]
[362074573,1747975845218,-430.0,0.00018082,2]